[Event "Titled Tuesday Blitz July 27 2021"]
[White "Preotu, Razvan"]
[Black "Poormosavi, Seyed Kian"]
[WhiteFideId "2613280"]
[BlackFideId "12585807"]
[WhiteElo "2407"]
[BlackElo "2134"]
[Result "1-0"]
[Round "04"]
[TimeControl "180+1"]
[Date "2021.07.27"]
[WhiteClock "0:00:05"]
[BlackClock "0:00:20"]

1. e4 {[%clk 0:03:00]}  c5 {[%clk 0:02:50]} 2. Nf3 {[%clk 0:03:00]}  d6 {[%clk 0:02:48]} 3. Bb5+ {[%clk 0:02:59]}  Bd7 {[%clk 0:02:40]} 4. Bxd7+ {[%clk 0:02:54]}  Nxd7 {[%clk 0:02:41]} 5. O-O {[%clk 0:02:53]}  g6 {[%clk 0:02:38]} 6. c4 {[%clk 0:02:15]}  Ngf6 {[%clk 0:02:36]} 7. Nc3 {[%clk 0:02:15]}  Bg7 {[%clk 0:02:33]} 8. d3 {[%clk 0:02:05]}  O-O {[%clk 0:02:32]} 9. a3 {[%clk 0:02:04]}  Ng4 {[%clk 0:02:09]} 10. h3 {[%clk 0:01:02]}  Nge5 {[%clk 0:02:08]} 11. Nh2 {[%clk 0:00:53]}  Nc6 {[%clk 0:02:05]} 12. f4 {[%clk 0:00:53]}  f5 {[%clk 0:02:01]} 13. Qe1 {[%clk 0:00:34]}  Nd4 {[%clk 0:02:00]} 14. Rf2 {[%clk 0:00:35]}  e5 {[%clk 0:01:51]} 15. Nd5 {[%clk 0:00:34]}  Nb6 {[%clk 0:01:48]} 16. fxe5 {[%clk 0:00:32]}  Nxd5 {[%clk 0:01:45]} 17. exd5 {[%clk 0:00:30]}  Bxe5 {[%clk 0:01:44]} 18. Nf3 {[%clk 0:00:30]}  Bg3 {[%clk 0:01:24]} 19. Nxd4 {[%clk 0:00:30]}  Bxf2+ {[%clk 0:01:24]} 20. Qxf2 {[%clk 0:00:30]}  cxd4 {[%clk 0:01:25]} 21. Qxd4 {[%clk 0:00:29]}  Qf6 {[%clk 0:01:16]} 22. Qxf6 {[%clk 0:00:26]}  Rxf6 {[%clk 0:01:17]} 23. Bg5 {[%clk 0:00:25]}  Rf7 {[%clk 0:01:05]} 24. Re1 {[%clk 0:00:26]}  Rd7 {[%clk 0:01:05]} 25. Re6 {[%clk 0:00:23]}  Kf7 {[%clk 0:01:00]} 26. Rf6+ {[%clk 0:00:21]}  Kg7 {[%clk 0:01:01]} 27. Re6 {[%clk 0:00:21]}  h6 {[%clk 0:00:59]} 28. Bf4 {[%clk 0:00:19]}  Rad8 {[%clk 0:00:59]} 29. h4 {[%clk 0:00:18]}  a6 {[%clk 0:00:53]} 30. Kf2 {[%clk 0:00:16]}  Kf7 {[%clk 0:00:47]} 31. Bxh6 {[%clk 0:00:16]}  Re8 {[%clk 0:00:47]} 32. Rxe8 {[%clk 0:00:13]}  Kxe8 {[%clk 0:00:48]} 33. Bg5 {[%clk 0:00:12]}  b5 {[%clk 0:00:47]} 34. Ke3 {[%clk 0:00:12]}  Rb7 {[%clk 0:00:43]} 35. b4 {[%clk 0:00:12]}  bxc4 {[%clk 0:00:37]} 36. dxc4 {[%clk 0:00:13]}  a5 {[%clk 0:00:38]} 37. b5 {[%clk 0:00:11]}  a4 {[%clk 0:00:38]} 38. Kd4 {[%clk 0:00:11]}  Kd7 {[%clk 0:00:38]} 39. Kc3 {[%clk 0:00:10]}  Rc7 {[%clk 0:00:31]} 40. Kb4 {[%clk 0:00:10]}  Rc8 {[%clk 0:00:32]} 41. b6 {[%clk 0:00:10]}  Re8 {[%clk 0:00:20]} 42. Kxa4 {[%clk 0:00:09]}  Kc8 {[%clk 0:00:20]} 43. Kb5 {[%clk 0:00:02]}  Kb7 {[%clk 0:00:20]} 44. a4 {[%clk 0:00:01]}  Re2 {[%clk 0:00:21]} 45. a5 {[%clk 0:00:01]}  Rb2+ {[%clk 0:00:20]} 46. Ka4 {[%clk 0:00:02]}  Rxg2 {[%clk 0:00:21]} 47. c5 {[%clk 0:00:02]}  dxc5 {[%clk 0:00:21]} 48. d6 {[%clk 0:00:02]}  Rg1 {[%clk 0:00:13]} 49. d7 {[%clk 0:00:02]}  Rg4+ {[%clk 0:00:12]} 50. Kb5 {[%clk 0:00:02]}  Rd4 {[%clk 0:00:13]} 51. d8=Q {[%clk 0:00:01]}  Rxd8 {[%clk 0:00:13]} 52. Bxd8 {[%clk 0:00:02]}  f4 {[%clk 0:00:14]} 53. Bg5 {[%clk 0:00:02]}  f3 {[%clk 0:00:15]} 54. Be3 {[%clk 0:00:03]}  c4 {[%clk 0:00:15]} 55. a6+ {[%clk 0:00:03]}  Kb8 {[%clk 0:00:15]} 56. Kxc4 {[%clk 0:00:04]}  Ka8 {[%clk 0:00:16]} 57. Kd5 {[%clk 0:00:04]}  g5 {[%clk 0:00:17]} 58. hxg5 {[%clk 0:00:03]}  Kb8 {[%clk 0:00:18]} 59. Bf2 {[%clk 0:00:03]}  Ka8 {[%clk 0:00:19]} 60. Kc6 {[%clk 0:00:03]}  Kb8 {[%clk 0:00:20]} 61. g6 {[%clk 0:00:04]}  Ka8 {[%clk 0:00:20]} 62. g7 {[%clk 0:00:05]} 1-0


[Site "https://www.chess.com"]

[Event "Titled Tuesday Blitz July 27 2021"]
[White "Quintiliano Pinto, Renato R."]
[Black "Onyshchuk, Volodymyr"]
[WhiteFideId "2117568"]
[BlackFideId "14114038"]
[WhiteElo "2439"]
[BlackElo "2603"]
[Result "0-1"]
[Round "04"]
[TimeControl "180+1"]
[Date "2021.07.27"]
[WhiteClock "0:00:15"]
[BlackClock "0:01:29"]

1. Nf3 {[%clk 0:03:00]}  g6 {[%clk 0:02:59]} 2. d4 {[%clk 0:03:00]}  Bg7 {[%clk 0:03:00]} 3. c4 {[%clk 0:03:01]}  d6 {[%clk 0:03:00]} 4. Nc3 {[%clk 0:02:59]}  e5 {[%clk 0:03:01]} 5. e4 {[%clk 0:02:39]}  exd4 {[%clk 0:02:57]} 6. Nxd4 {[%clk 0:02:39]}  Ne7 {[%clk 0:02:57]} 7. Be2 {[%clk 0:02:38]}  Nbc6 {[%clk 0:02:57]} 8. Be3 {[%clk 0:02:37]}  O-O {[%clk 0:02:56]} 9. O-O {[%clk 0:02:36]}  f5 {[%clk 0:02:57]} 10. Nxc6 {[%clk 0:02:32]}  bxc6 {[%clk 0:02:56]} 11. exf5 {[%clk 0:02:23]}  Nxf5 {[%clk 0:02:55]} 12. Bd2 {[%clk 0:02:23]}  d5 {[%clk 0:02:48]} 13. cxd5 {[%clk 0:02:15]}  cxd5 {[%clk 0:02:48]} 14. Bf3 {[%clk 0:02:14]}  c6 {[%clk 0:02:46]} 15. Rc1 {[%clk 0:02:01]}  Nd4 {[%clk 0:02:45]} 16. Bg4 {[%clk 0:02:01]}  Ba6 {[%clk 0:02:42]} 17. Re1 {[%clk 0:01:51]}  Qd6 {[%clk 0:02:40]} 18. Be3 {[%clk 0:01:38]}  Nf5 {[%clk 0:02:33]} 19. Bxf5 {[%clk 0:01:32]}  Rxf5 {[%clk 0:02:33]} 20. Ne4 {[%clk 0:01:27]}  Qf8 {[%clk 0:02:10]} 21. Nc5 {[%clk 0:01:25]}  Bc8 {[%clk 0:02:10]} 22. Bd4 {[%clk 0:01:17]}  Rb8 {[%clk 0:01:44]} 23. Rc2 {[%clk 0:01:01]}  Rb4 {[%clk 0:01:38]} 24. Bxg7 {[%clk 0:00:53]}  Kxg7 {[%clk 0:01:38]} 25. Ne6+ {[%clk 0:00:29]}  Bxe6 {[%clk 0:01:36]} 26. Rxe6 {[%clk 0:00:30]}  c5 {[%clk 0:01:32]} 27. Rxc5 {[%clk 0:00:15]}  Qxc5 {[%clk 0:01:29]} 0-1


[Site "https://www.chess.com"]

[Event "Titled Tuesday Blitz July 27 2021"]
[White "Sadovsky, Artem"]
[Black "Haitin, Ilja"]
[WhiteFideId "4155840"]
[BlackFideId "4501764"]
[WhiteElo "2442"]
[BlackElo "2165"]
[Result "1-0"]
[Round "04"]
[TimeControl "180+1"]
[Date "2021.07.27"]
[WhiteClock "0:00:07"]
[BlackClock "0:00:01"]

1. Nf3 {[%clk 0:03:00]}  d5 {[%clk 0:02:23]} 2. g3 {[%clk 0:03:01]}  c5 {[%clk 0:02:20]} 3. Bg2 {[%clk 0:03:02]}  Nf6 {[%clk 0:02:20]} 4. O-O {[%clk 0:03:02]}  e6 {[%clk 0:02:18]} 5. d3 {[%clk 0:03:00]}  Be7 {[%clk 0:02:19]} 6. Nbd2 {[%clk 0:03:00]}  O-O {[%clk 0:02:19]} 7. e4 {[%clk 0:03:00]}  Nc6 {[%clk 0:02:19]} 8. c3 {[%clk 0:02:58]}  b5 {[%clk 0:02:16]} 9. e5 {[%clk 0:02:41]}  Nd7 {[%clk 0:02:14]} 10. d4 {[%clk 0:02:42]}  b4 {[%clk 0:02:01]} 11. Qe2 {[%clk 0:02:31]}  a5 {[%clk 0:01:58]} 12. Rd1 {[%clk 0:02:30]}  bxc3 {[%clk 0:01:53]} 13. bxc3 {[%clk 0:02:30]}  cxd4 {[%clk 0:01:53]} 14. cxd4 {[%clk 0:02:29]}  Ba6 {[%clk 0:01:54]} 15. Qe3 {[%clk 0:02:28]}  Nb4 {[%clk 0:01:54]} 16. Ne1 {[%clk 0:02:19]}  Nb6 {[%clk 0:01:51]} 17. a3 {[%clk 0:02:14]}  Nc6 {[%clk 0:01:50]} 18. Nd3 {[%clk 0:02:06]}  Nc4 {[%clk 0:01:47]} 19. Nxc4 {[%clk 0:02:06]}  Bxc4 {[%clk 0:01:47]} 20. Nc5 {[%clk 0:01:54]}  Bxc5 {[%clk 0:01:41]} 21. dxc5 {[%clk 0:01:53]}  Rb8 {[%clk 0:01:42]} 22. Qf4 {[%clk 0:01:31]}  Rb3 {[%clk 0:01:32]} 23. Be3 {[%clk 0:01:26]}  Qb8 {[%clk 0:01:28]} 24. Rac1 {[%clk 0:01:04]}  Qxe5 {[%clk 0:01:23]} 25. Qxe5 {[%clk 0:01:05]}  Nxe5 {[%clk 0:01:24]} 26. Bd4 {[%clk 0:00:46]}  Nd3 {[%clk 0:01:10]} 27. Rb1 {[%clk 0:00:23]}  Rxb1 {[%clk 0:00:36]} 28. Rxb1 {[%clk 0:00:24]}  Rc8 {[%clk 0:00:34]} 29. Bf1 {[%clk 0:00:14]}  e5 {[%clk 0:00:31]} 30. Bh3 {[%clk 0:00:11]}  Rf8 {[%clk 0:00:20]} 31. c6 {[%clk 0:00:11]}  exd4 {[%clk 0:00:16]} 32. c7 {[%clk 0:00:10]}  Ba6 {[%clk 0:00:15]} 33. Rb6 {[%clk 0:00:02]}  Nc5 {[%clk 0:00:13]} 34. Rc6 {[%clk 0:00:02]}  d3 {[%clk 0:00:13]} 35. Rxc5 {[%clk 0:00:02]}  d2 {[%clk 0:00:13]} 36. Bg4 {[%clk 0:00:03]}  f5 {[%clk 0:00:11]} 37. Bd1 {[%clk 0:00:02]}  Rc8 {[%clk 0:00:10]} 38. f4 {[%clk 0:00:02]}  Bc4 {[%clk 0:00:09]} 39. Kf2 {[%clk 0:00:02]}  Kf7 {[%clk 0:00:10]} 40. Ke3 {[%clk 0:00:03]}  Ke7 {[%clk 0:00:10]} 41. Kxd2 {[%clk 0:00:01]}  Kd6 {[%clk 0:00:10]} 42. Rxa5 {[%clk 0:00:02]}  Rxc7 {[%clk 0:00:10]} 43. Bc2 {[%clk 0:00:02]}  Rb7 {[%clk 0:00:09]} 44. Bxf5 {[%clk 0:00:02]}  g6 {[%clk 0:00:09]} 45. Bc2 {[%clk 0:00:01]}  Rb2 {[%clk 0:00:08]} 46. Kc3 {[%clk 0:00:02]}  Ra2 {[%clk 0:00:08]} 47. Bd3 {[%clk 0:00:02]}  Bxd3 {[%clk 0:00:08]} 48. Kxd3 {[%clk 0:00:03]}  Rxh2 {[%clk 0:00:08]} 49. Ke3 {[%clk 0:00:03]}  Rg2 {[%clk 0:00:08]} 50. Kf3 {[%clk 0:00:04]}  Ra2 {[%clk 0:00:08]} 51. Kg4 {[%clk 0:00:03]}  d4 {[%clk 0:00:08]} 52. Kf3 {[%clk 0:00:03]}  Rb2 {[%clk 0:00:07]} 53. Ke4 {[%clk 0:00:03]}  Rg2 {[%clk 0:00:06]} 54. Ra6+ {[%clk 0:00:02]}  Kc5 {[%clk 0:00:06]} 55. Ra5+ {[%clk 0:00:03]}  Kc4 {[%clk 0:00:05]} 56. Ra4+ {[%clk 0:00:02]}  Kc5 {[%clk 0:00:06]} 57. Ra5+ {[%clk 0:00:02]}  Kc4 {[%clk 0:00:06]} 58. Ra4+ {[%clk 0:00:03]}  Kc5 {[%clk 0:00:06]} 59. Rxd4 {[%clk 0:00:04]}  Rxg3 {[%clk 0:00:05]} 60. a4 {[%clk 0:00:04]}  Ra3 {[%clk 0:00:04]} 61. Rd5+ {[%clk 0:00:04]}  Kc6 {[%clk 0:00:03]} 62. Rd4 {[%clk 0:00:05]}  Kc5 {[%clk 0:00:04]} 63. Rd5+ {[%clk 0:00:05]}  Kc6 {[%clk 0:00:04]} 64. Ra5 {[%clk 0:00:06]}  Kb6 {[%clk 0:00:02]} 65. Ra8 {[%clk 0:00:06]}  Kb7 {[%clk 0:00:03]} 66. Ra5 {[%clk 0:00:06]}  Kb6 {[%clk 0:00:03]} 67. Ra8 {[%clk 0:00:05]}  Kb7 {[%clk 0:00:03]} 68. Rh8 {[%clk 0:00:06]}  Rxa4+ {[%clk 0:00:03]} 69. Ke5 {[%clk 0:00:07]}  Ra5+ {[%clk 0:00:03]} 70. Ke4 {[%clk 0:00:07]}  Ra4+ {[%clk 0:00:03]} 71. Kf3 {[%clk 0:00:07]}  Kc6 {[%clk 0:00:03]} 72. Rxh7 {[%clk 0:00:07]}  Kd5 {[%clk 0:00:03]} 73. Rh6 {[%clk 0:00:06]}  Ra3+ {[%clk 0:00:02]} 74. Kg4 {[%clk 0:00:07]}  Ra6 {[%clk 0:00:02]} 75. Kg5 {[%clk 0:00:07]}  Ke4 {[%clk 0:00:01]} 76. f5 {[%clk 0:00:07]}  Ra5 {[%clk 0:00:01]} 77. Rh4+ {[%clk 0:00:07]}  Ke5 {[%clk 0:00:01]} 78. Kxg6 {[%clk 0:00:07]} 1-0


[Site "https://www.chess.com"]

[Event "Titled Tuesday Blitz July 27 2021"]
[White "Sapunov, Evgeny"]
[Black "Arnold, Ken"]
[WhiteFideId "4126661"]
[BlackFideId "2056836"]
[WhiteElo "2470"]
[BlackElo "2514"]
[Result "1-0"]
[Round "04"]
[TimeControl "180+1"]
[Date "2021.07.27"]
[WhiteClock "0:01:07"]
[BlackClock "0:00:41"]

1. c4 {[%clk 0:03:00]}  e6 {[%clk 0:02:59]} 2. Nf3 {[%clk 0:03:00]}  Nf6 {[%clk 0:02:59]} 3. Nc3 {[%clk 0:03:00]}  d5 {[%clk 0:02:59]} 4. d4 {[%clk 0:03:00]}  Be7 {[%clk 0:02:59]} 5. Bg5 {[%clk 0:03:00]}  Nbd7 {[%clk 0:02:59]} 6. e3 {[%clk 0:03:00]}  c6 {[%clk 0:03:00]} 7. Qc2 {[%clk 0:02:58]}  O-O {[%clk 0:02:58]} 8. Bd3 {[%clk 0:02:58]}  Re8 {[%clk 0:02:57]} 9. O-O {[%clk 0:02:57]}  b6 {[%clk 0:02:56]} 10. cxd5 {[%clk 0:02:53]}  exd5 {[%clk 0:02:50]} 11. Rfd1 {[%clk 0:02:50]}  Bb7 {[%clk 0:02:50]} 12. Rac1 {[%clk 0:02:49]}  h6 {[%clk 0:02:50]} 13. Bf4 {[%clk 0:02:48]}  Nf8 {[%clk 0:02:49]} 14. h3 {[%clk 0:02:44]}  Bd6 {[%clk 0:02:49]} 15. Ne5 {[%clk 0:02:40]}  Ne6 {[%clk 0:02:47]} 16. Bh2 {[%clk 0:02:38]}  Rc8 {[%clk 0:02:46]} 17. Bf5 {[%clk 0:02:30]}  a5 {[%clk 0:02:40]} 18. a3 {[%clk 0:02:23]}  b5 {[%clk 0:02:38]} 19. Qb1 {[%clk 0:02:17]}  Qe7 {[%clk 0:02:36]} 20. Ne2 {[%clk 0:02:14]}  Bxe5 {[%clk 0:02:31]} 21. Bxe5 {[%clk 0:02:13]}  Nd7 {[%clk 0:02:30]} 22. Bh2 {[%clk 0:02:12]}  Nb6 {[%clk 0:02:27]} 23. Nf4 {[%clk 0:01:57]}  Nc4 {[%clk 0:02:24]} 24. Nd3 {[%clk 0:01:53]}  Nd6 {[%clk 0:02:04]} 25. Bg4 {[%clk 0:01:48]}  Ne4 {[%clk 0:02:00]} 26. Rc2 {[%clk 0:01:43]}  Nf6 {[%clk 0:01:55]} 27. Bf5 {[%clk 0:01:41]}  g6 {[%clk 0:01:54]} 28. Bxe6 {[%clk 0:01:40]}  Qxe6 {[%clk 0:01:46]} 29. Rdc1 {[%clk 0:01:39]}  Nd7 {[%clk 0:01:39]} 30. b3 {[%clk 0:01:31]}  Ba6 {[%clk 0:01:23]} 31. Nc5 {[%clk 0:01:18]}  Nxc5 {[%clk 0:01:23]} 32. Rxc5 {[%clk 0:01:19]}  b4 {[%clk 0:01:18]} 33. a4 {[%clk 0:01:16]}  Bb7 {[%clk 0:01:09]} 34. Rxa5 {[%clk 0:01:16]}  f5 {[%clk 0:00:55]} 35. Be5 {[%clk 0:01:12]}  Ra8 {[%clk 0:00:53]} 36. Rac5 {[%clk 0:01:11]}  Rec8 {[%clk 0:00:52]} 37. Qd3 {[%clk 0:01:11]}  Ba6 {[%clk 0:00:51]} 38. Qd2 {[%clk 0:01:11]}  Rab8 {[%clk 0:00:49]} 39. e4 {[%clk 0:01:08]}  Rb7 {[%clk 0:00:41]} 40. exd5 {[%clk 0:01:07]} 1-0


[Site "https://www.chess.com"]

[Event "Titled Tuesday Blitz July 27 2021"]
[White "Sarana, Alexey"]
[Black "Devaev, Alexander"]
[WhiteFideId "24133795"]
[BlackFideId "4169395"]
[WhiteElo "2646"]
[BlackElo "2185"]
[Result "1-0"]
[Round "04"]
[TimeControl "180+1"]
[Date "2021.07.27"]
[WhiteClock "0:01:32"]
[BlackClock "0:00:02"]

1. e4 {[%clk 0:03:00]}  c6 {[%clk 0:02:59]} 2. Nc3 {[%clk 0:02:57]}  d5 {[%clk 0:03:00]} 3. Nf3 {[%clk 0:02:58]}  dxe4 {[%clk 0:03:00]} 4. Nxe4 {[%clk 0:02:59]}  Nf6 {[%clk 0:03:00]} 5. Qe2 {[%clk 0:02:59]}  Nxe4 {[%clk 0:02:57]} 6. Qxe4 {[%clk 0:03:00]}  Qd5 {[%clk 0:02:41]} 7. Qh4 {[%clk 0:02:56]}  Bf5 {[%clk 0:02:27]} 8. Bc4 {[%clk 0:02:55]}  Qd8 {[%clk 0:02:25]} 9. Qf4 {[%clk 0:02:49]}  e6 {[%clk 0:02:20]} 10. c3 {[%clk 0:02:48]}  Bd6 {[%clk 0:02:15]} 11. Qe3 {[%clk 0:02:45]}  O-O {[%clk 0:02:05]} 12. d4 {[%clk 0:02:45]}  Nd7 {[%clk 0:02:04]} 13. O-O {[%clk 0:02:45]}  Qc7 {[%clk 0:02:01]} 14. h3 {[%clk 0:02:44]}  e5 {[%clk 0:01:54]} 15. Rd1 {[%clk 0:02:37]}  Rae8 {[%clk 0:01:51]} 16. Bb3 {[%clk 0:02:35]}  c5 {[%clk 0:01:37]} 17. dxc5 {[%clk 0:02:12]}  Nxc5 {[%clk 0:01:27]} 18. Bd5 {[%clk 0:02:10]}  Be6 {[%clk 0:01:06]} 19. Bxe6 {[%clk 0:02:09]}  Rxe6 {[%clk 0:00:49]} 20. Qe2 {[%clk 0:02:02]}  Rfe8 {[%clk 0:00:46]} 21. Be3 {[%clk 0:02:01]}  a6 {[%clk 0:00:35]} 22. Rd5 {[%clk 0:01:58]}  h6 {[%clk 0:00:22]} 23. Rad1 {[%clk 0:01:58]}  Bf8 {[%clk 0:00:22]} 24. Nh4 {[%clk 0:01:52]}  Rd6 {[%clk 0:00:18]} 25. Rxd6 {[%clk 0:01:47]}  Bxd6 {[%clk 0:00:18]} 26. Nf5 {[%clk 0:01:48]}  Bf8 {[%clk 0:00:19]} 27. Qg4 {[%clk 0:01:48]}  Kh8 {[%clk 0:00:18]} 28. Bxc5 {[%clk 0:01:42]}  Qxc5 {[%clk 0:00:19]} 29. Rd7 {[%clk 0:01:42]}  e4 {[%clk 0:00:06]} 30. Rxf7 {[%clk 0:01:38]}  Qe5 {[%clk 0:00:06]} 31. Nxh6 {[%clk 0:01:32]}  gxh6 {[%clk 0:00:02]} 32. Qg6 {[%clk 0:01:32]} 1-0


[Site "https://www.chess.com"]

[Event "Titled Tuesday Blitz July 27 2021"]
[White "Shevchenko, Kirill"]
[Black "Mkrtchian, Lilit"]
[WhiteFideId "14129574"]
[BlackFideId "13300601"]
[WhiteElo "2569"]
[BlackElo "2319"]
[Result "1-0"]
[Round "04"]
[TimeControl "180+1"]
[Date "2021.07.27"]
[WhiteClock "0:00:33"]
[BlackClock "0:00:02"]

1. d4 {[%clk 0:03:00]}  Nf6 {[%clk 0:02:58]} 2. c4 {[%clk 0:02:58]}  e6 {[%clk 0:02:58]} 3. Nc3 {[%clk 0:02:58]}  Bb4 {[%clk 0:02:56]} 4. Nf3 {[%clk 0:02:59]}  b6 {[%clk 0:02:50]} 5. Qb3 {[%clk 0:02:53]}  c5 {[%clk 0:02:43]} 6. dxc5 {[%clk 0:02:53]}  Bxc5 {[%clk 0:02:42]} 7. Bg5 {[%clk 0:02:50]}  Bb7 {[%clk 0:02:36]} 8. e3 {[%clk 0:02:49]}  Be7 {[%clk 0:02:31]} 9. Rd1 {[%clk 0:02:35]}  d6 {[%clk 0:02:07]} 10. Be2 {[%clk 0:02:35]}  Nbd7 {[%clk 0:02:06]} 11. O-O {[%clk 0:02:17]}  a6 {[%clk 0:02:06]} 12. Bh4 {[%clk 0:02:17]}  Qc7 {[%clk 0:02:02]} 13. Qc2 {[%clk 0:02:01]}  O-O {[%clk 0:01:59]} 14. h3 {[%clk 0:01:55]}  Rac8 {[%clk 0:01:19]} 15. Bg3 {[%clk 0:01:53]}  Bxf3 {[%clk 0:01:05]} 16. Bxf3 {[%clk 0:01:50]}  Qxc4 {[%clk 0:01:02]} 17. Bxd6 {[%clk 0:01:48]}  Bxd6 {[%clk 0:00:59]} 18. Rxd6 {[%clk 0:01:48]}  Ne5 {[%clk 0:00:59]} 19. Be2 {[%clk 0:01:47]}  Qc7 {[%clk 0:00:56]} 20. Rfd1 {[%clk 0:01:46]}  b5 {[%clk 0:00:52]} 21. a3 {[%clk 0:01:44]}  Qb7 {[%clk 0:00:43]} 22. Qb3 {[%clk 0:01:37]}  h6 {[%clk 0:00:41]} 23. a4 {[%clk 0:01:36]}  Nc4 {[%clk 0:00:19]} 24. Bxc4 {[%clk 0:01:34]}  Rxc4 {[%clk 0:00:17]} 25. axb5 {[%clk 0:01:34]}  axb5 {[%clk 0:00:17]} 26. R1d4 {[%clk 0:01:20]}  Rfc8 {[%clk 0:00:16]} 27. Rxc4 {[%clk 0:00:50]}  Rxc4 {[%clk 0:00:15]} 28. Rd8+ {[%clk 0:00:51]}  Kh7 {[%clk 0:00:15]} 29. Qc2+ {[%clk 0:00:52]}  g6 {[%clk 0:00:13]} 30. Qd3 {[%clk 0:00:52]}  Qc6 {[%clk 0:00:11]} 31. Ne2 {[%clk 0:00:50]}  b4 {[%clk 0:00:10]} 32. Nf4 {[%clk 0:00:41]}  Kg7 {[%clk 0:00:09]} 33. Rd6 {[%clk 0:00:41]}  Rc1+ {[%clk 0:00:09]} 34. Kh2 {[%clk 0:00:41]}  Qc7 {[%clk 0:00:09]} 35. Qd4 {[%clk 0:00:37]}  Rc2 {[%clk 0:00:04]} 36. Kg1 {[%clk 0:00:34]}  Rc1+ {[%clk 0:00:03]} 37. Kh2 {[%clk 0:00:35]}  Qc5 {[%clk 0:00:03]} 38. Nxe6+ {[%clk 0:00:33]}  fxe6 {[%clk 0:00:02]} 39. Rd7+ {[%clk 0:00:33]} 1-0


[Site "https://www.chess.com"]

[Event "Titled Tuesday Blitz July 27 2021"]
[White "Shkapenko, Pavel"]
[Black "Sorokin, Aleksey"]
[WhiteFideId "4151933"]
[BlackFideId "24176460"]
[WhiteElo "2386"]
[BlackElo "2476"]
[Result "1-0"]
[Round "04"]
[TimeControl "180+1"]
[Date "2021.07.27"]
[WhiteClock "0:00:19"]
[BlackClock "0:00:32"]

1. e4 {[%clk 0:03:00]}  c6 {[%clk 0:02:59]} 2. d4 {[%clk 0:03:00]}  d5 {[%clk 0:03:00]} 3. e5 {[%clk 0:03:00]}  Bf5 {[%clk 0:03:00]} 4. h4 {[%clk 0:03:00]}  h5 {[%clk 0:02:59]} 5. Bd3 {[%clk 0:03:00]}  Bxd3 {[%clk 0:02:59]} 6. Qxd3 {[%clk 0:03:01]}  e6 {[%clk 0:03:00]} 7. Bg5 {[%clk 0:03:01]}  Be7 {[%clk 0:03:00]} 8. Nf3 {[%clk 0:02:47]}  Nh6 {[%clk 0:02:59]} 9. Nc3 {[%clk 0:02:43]}  Nf5 {[%clk 0:02:59]} 10. Ne2 {[%clk 0:02:44]}  c5 {[%clk 0:03:00]} 11. c4 {[%clk 0:02:37]}  Nc6 {[%clk 0:02:55]} 12. Bxe7 {[%clk 0:02:26]}  Nfxe7 {[%clk 0:02:44]} 13. dxc5 {[%clk 0:02:04]}  Qa5+ {[%clk 0:02:44]} 14. Nc3 {[%clk 0:02:04]}  d4 {[%clk 0:02:15]} 15. Nxd4 {[%clk 0:01:57]}  Rd8 {[%clk 0:02:15]} 16. Nxc6 {[%clk 0:01:57]}  Nxc6 {[%clk 0:02:15]} 17. Qg3 {[%clk 0:01:56]}  O-O {[%clk 0:01:57]} 18. O-O {[%clk 0:01:53]}  Qxc5 {[%clk 0:01:57]} 19. b3 {[%clk 0:01:30]}  Nxe5 {[%clk 0:01:51]} 20. Ne4 {[%clk 0:01:26]}  Qd4 {[%clk 0:01:48]} 21. Nf6+ {[%clk 0:01:20]}  Kh8 {[%clk 0:01:47]} 22. Nxh5 {[%clk 0:01:17]}  Ng6 {[%clk 0:01:48]} 23. Kh2 {[%clk 0:01:01]}  Qxh4+ {[%clk 0:01:39]} 24. Qxh4 {[%clk 0:01:01]}  Nxh4 {[%clk 0:01:40]} 25. Rad1 {[%clk 0:00:58]}  Nf5 {[%clk 0:01:36]} 26. Nf4 {[%clk 0:00:55]}  g5 {[%clk 0:01:34]} 27. Nd3 {[%clk 0:00:51]}  Kg7 {[%clk 0:01:08]} 28. g3 {[%clk 0:00:48]}  b6 {[%clk 0:01:07]} 29. Ne5 {[%clk 0:00:46]}  Kf6 {[%clk 0:00:58]} 30. Nc6 {[%clk 0:00:44]}  Rc8 {[%clk 0:00:55]} 31. Nxa7 {[%clk 0:00:39]}  Ra8 {[%clk 0:00:55]} 32. Rd7 {[%clk 0:00:39]}  g4 {[%clk 0:00:49]} 33. Kg2 {[%clk 0:00:38]}  Rh8 {[%clk 0:00:48]} 34. a4 {[%clk 0:00:35]}  Rh3 {[%clk 0:00:46]} 35. Rh1 {[%clk 0:00:35]}  Rah8 {[%clk 0:00:45]} 36. Rxh3 {[%clk 0:00:35]}  gxh3+ {[%clk 0:00:46]} 37. Kh2 {[%clk 0:00:35]}  e5 {[%clk 0:00:47]} 38. Nb5 {[%clk 0:00:32]}  Ke6 {[%clk 0:00:46]} 39. Rb7 {[%clk 0:00:29]}  Nd4 {[%clk 0:00:46]} 40. Rxb6+ {[%clk 0:00:28]}  Kf5 {[%clk 0:00:46]} 41. Nxd4+ {[%clk 0:00:27]}  exd4 {[%clk 0:00:47]} 42. Rd6 {[%clk 0:00:27]}  Ke4 {[%clk 0:00:46]} 43. c5 {[%clk 0:00:25]}  d3 {[%clk 0:00:46]} 44. b4 {[%clk 0:00:25]}  Ra8 {[%clk 0:00:38]} 45. a5 {[%clk 0:00:25]}  Rb8 {[%clk 0:00:38]} 46. a6 {[%clk 0:00:19]}  Rxb4 {[%clk 0:00:38]} 47. c6 {[%clk 0:00:20]}  Rb6 {[%clk 0:00:33]} 48. a7 {[%clk 0:00:19]}  Ra6 {[%clk 0:00:33]} 49. c7 {[%clk 0:00:19]}  Rxd6 {[%clk 0:00:31]} 50. c8=Q {[%clk 0:00:19]}  d2 {[%clk 0:00:32]} 51. a8=Q+ {[%clk 0:00:19]} 1-0


[Site "https://www.chess.com"]

[Event "Titled Tuesday Blitz July 27 2021"]
[White "Spata, German"]
[Black "Quirke, Jeffrey"]
[WhiteFideId "113026"]
[BlackFideId "2013029"]
[WhiteElo "2238"]
[BlackElo "2261"]
[Result "1/2-1/2"]
[Round "04"]
[TimeControl "180+1"]
[Date "2021.07.27"]
[WhiteClock "0:00:18"]
[BlackClock "0:00:59"]

1. d4 {[%clk 0:03:00]}  d5 {[%clk 0:01:56]} 2. Nc3 {[%clk 0:02:57]}  c6 {[%clk 0:01:54]} 3. Bf4 {[%clk 0:02:52]}  Bf5 {[%clk 0:01:53]} 4. e3 {[%clk 0:02:51]}  e6 {[%clk 0:01:53]} 5. f3 {[%clk 0:02:47]}  Nf6 {[%clk 0:01:52]} 6. g4 {[%clk 0:02:45]}  Bg6 {[%clk 0:01:52]} 7. Bd3 {[%clk 0:02:44]}  Bxd3 {[%clk 0:01:51]} 8. Qxd3 {[%clk 0:02:45]}  Be7 {[%clk 0:01:36]} 9. h4 {[%clk 0:02:42]}  h5 {[%clk 0:01:34]} 10. g5 {[%clk 0:02:42]}  Nfd7 {[%clk 0:01:34]} 11. Nge2 {[%clk 0:02:40]}  g6 {[%clk 0:01:30]} 12. Kf2 {[%clk 0:02:33]}  Na6 {[%clk 0:01:30]} 13. a3 {[%clk 0:02:27]}  Nb6 {[%clk 0:01:30]} 14. Be5 {[%clk 0:02:26]}  Rg8 {[%clk 0:01:27]} 15. e4 {[%clk 0:02:06]}  Nc4 {[%clk 0:01:26]} 16. Rab1 {[%clk 0:02:02]}  Nxe5 {[%clk 0:01:25]} 17. dxe5 {[%clk 0:02:02]}  dxe4 {[%clk 0:01:21]} 18. Qxd8+ {[%clk 0:01:47]}  Rxd8 {[%clk 0:01:20]} 19. Nxe4 {[%clk 0:01:47]}  Nc5 {[%clk 0:01:19]} 20. N2c3 {[%clk 0:01:35]}  Nxe4+ {[%clk 0:01:18]} 21. Nxe4 {[%clk 0:01:35]}  Kd7 {[%clk 0:01:18]} 22. Ke2 {[%clk 0:01:26]}  Kc7 {[%clk 0:01:18]} 23. Rhd1 {[%clk 0:01:25]}  Rxd1 {[%clk 0:01:13]} 24. Rxd1 {[%clk 0:01:24]}  Rd8 {[%clk 0:01:13]} 25. Rb1 {[%clk 0:01:15]}  b6 {[%clk 0:01:11]} 26. Rd1 {[%clk 0:00:58]}  Rxd1 {[%clk 0:01:10]} 27. Kxd1 {[%clk 0:00:58]}  c5 {[%clk 0:01:10]} 28. c4 {[%clk 0:00:51]}  Kc6 {[%clk 0:01:10]} 29. Kd2 {[%clk 0:00:45]}  a6 {[%clk 0:01:07]} 30. Kd3 {[%clk 0:00:45]}  b5 {[%clk 0:01:05]} 31. b3 {[%clk 0:00:42]}  Kc7 {[%clk 0:01:00]} 32. Nc3 {[%clk 0:00:18]}  Kc6 {[%clk 0:00:59]} 33. Ne4 {[%clk 0:00:18]}  Kc7 {[%clk 0:00:59]} 34. Nc3 {[%clk 0:00:18]}  Kc6 {[%clk 0:00:59]} 35. Ne4 {[%clk 0:00:18]} 1/2-1/2


[Site "https://www.chess.com"]